[Event "December 5 Early 2023"]
[Site "https://www.chess.com"]
[Date "2023.12.05"]
[Round "9"]
[White "Tilahun , Abel Mathewos"]
[Black "Barath1308"]
[Result "0-1"]
[Board "133"]
[TimeControl "180+1"]
[WhiteFideId "15702391"]
[WhiteElo "2028"]
[BlackElo "2357"]
[WhiteTeam "ETH"]
[WhiteClock "0:00:09"]
[BlackClock "0:00:50"]

1. d4 {[%clk 0:03:00]}  Nf6 {[%clk 0:02:59]} 2. c4 {[%clk 0:03:00]}  g6 {[%clk 0:02:59]} 3. Nc3 {[%clk 0:03:00]}  Bg7 {[%clk 0:02:59]} 4. e4 {[%clk 0:03:00]}  d6 {[%clk 0:03:00]} 5. f3 {[%clk 0:03:00]}  Nc6 {[%clk 0:02:58]} 6. Be3 {[%clk 0:03:00]}  a6 {[%clk 0:02:56]} 7. Nge2 {[%clk 0:03:00]}  O-O {[%clk 0:02:54]} 8. Qd2 {[%clk 0:02:59]}  Rb8 {[%clk 0:02:54]} 9. O-O-O {[%clk 0:02:58]}  b5 {[%clk 0:02:45]} 10. g4 {[%clk 0:02:57]}  b4 {[%clk 0:02:25]} 11. Nd5 {[%clk 0:02:55]}  Nd7 {[%clk 0:02:12]} 12. h4 {[%clk 0:02:52]}  e6 {[%clk 0:02:10]} 13. Ndf4 {[%clk 0:02:44]}  e5 {[%clk 0:02:09]} 14. Nd5 {[%clk 0:02:42]}  exd4 {[%clk 0:02:06]} 15. Bxd4 {[%clk 0:02:41]}  Nde5 {[%clk 0:02:04]} 16. Bxe5 {[%clk 0:02:34]}  Nxe5 {[%clk 0:02:01]} 17. Nd4 {[%clk 0:02:31]}  c5 {[%clk 0:01:58]} 18. Nf5 {[%clk 0:02:18]}  Bxf5 {[%clk 0:01:50]} 19. gxf5 {[%clk 0:02:16]}  Nxf3 {[%clk 0:01:50]} 20. Qf2 {[%clk 0:02:06]}  Nd4 {[%clk 0:01:42]} 21. f6 {[%clk 0:01:59]}  Bh6+ {[%clk 0:01:42]} 22. Kb1 {[%clk 0:01:59]}  Re8 {[%clk 0:01:37]} 23. Bd3 {[%clk 0:01:51]}  Re5 {[%clk 0:01:33]} 24. h5 {[%clk 0:01:47]}  g5 {[%clk 0:01:30]} 25. Rhg1 {[%clk 0:01:36]}  Bf8 {[%clk 0:01:28]} 26. Rdf1 {[%clk 0:01:22]}  h6 {[%clk 0:01:28]} 27. Nf4 {[%clk 0:00:52]}  Kh8 {[%clk 0:01:25]} 28. Nd5 {[%clk 0:00:43]}  Kg8 {[%clk 0:01:24]} 29. Qg3 {[%clk 0:00:35]}  a5 {[%clk 0:01:22]} 30. Nf4 {[%clk 0:00:28]}  Qxf6 {[%clk 0:01:02]} 31. Ng6 {[%clk 0:00:21]}  Qe6 {[%clk 0:01:02]} 32. Nxe5 {[%clk 0:00:16]}  dxe5 {[%clk 0:01:02]} 33. Rf5 {[%clk 0:00:15]}  Nxf5 {[%clk 0:00:59]} 34. exf5 {[%clk 0:00:15]}  Qf6 {[%clk 0:00:58]} 35. Be4 {[%clk 0:00:13]}  Rd8 {[%clk 0:00:58]} 36. Rf1 {[%clk 0:00:13]}  Bg7 {[%clk 0:00:58]} 37. a3 {[%clk 0:00:11]}  Rd4 {[%clk 0:00:58]} 38. Bd5 {[%clk 0:00:10]}  e4 {[%clk 0:00:55]} 39. Qb3 {[%clk 0:00:10]}  Rd3 {[%clk 0:00:51]} 40. Qa4 {[%clk 0:00:09]}  Qxb2# {[%clk 0:00:50]} 0-1

[Event "December 5 Early 2023"]
[Site "https://www.chess.com"]
[Date "2023.12.05"]
[Round "9"]
[White "Ernst, Luca"]
[Black "Mushini Ajay"]
[Result "0-1"]
[Board "135"]
[TimeControl "180+1"]
[WhiteFideId "45117055"]
[BlackFideId "35066188"]
[WhiteElo "2252"]
[BlackElo "2400"]
[WhiteTeam "FRA"]
[BlackTeam "IND"]
[WhiteClock "0:00:01"]
[BlackClock "0:00:30"]

1. e4 {[%clk 0:03:00]}  c5 {[%clk 0:02:59]} 2. Nf3 {[%clk 0:03:00]}  d6 {[%clk 0:02:59]} 3. Bb5+ {[%clk 0:02:48]}  Bd7 {[%clk 0:02:52]} 4. Bxd7+ {[%clk 0:02:47]}  Qxd7 {[%clk 0:02:53]} 5. c4 {[%clk 0:02:46]}  e5 {[%clk 0:02:48]} 6. Nc3 {[%clk 0:02:45]}  Nc6 {[%clk 0:02:46]} 7. d3 {[%clk 0:02:44]}  Nge7 {[%clk 0:02:46]} 8. a3 {[%clk 0:02:36]}  g6 {[%clk 0:02:41]} 9. Nd5 {[%clk 0:02:30]}  Bg7 {[%clk 0:02:40]} 10. Bg5 {[%clk 0:02:21]}  Nxd5 {[%clk 0:02:35]} 11. cxd5 {[%clk 0:02:10]}  Nd4 {[%clk 0:02:32]} 12. Nxd4 {[%clk 0:02:09]}  exd4 {[%clk 0:02:23]} 13. O-O {[%clk 0:01:59]}  O-O {[%clk 0:02:23]} 14. b4 {[%clk 0:01:52]}  b5 {[%clk 0:02:15]} 15. Rc1 {[%clk 0:01:42]}  Rfc8 {[%clk 0:02:08]} 16. bxc5 {[%clk 0:01:15]}  dxc5 {[%clk 0:02:06]} 17. f4 {[%clk 0:01:07]}  c4 {[%clk 0:02:00]} 18. f5 {[%clk 0:00:53]}  c3 {[%clk 0:01:34]} 19. f6 {[%clk 0:00:47]}  Bf8 {[%clk 0:01:32]} 20. Qb3 {[%clk 0:00:44]}  a5 {[%clk 0:01:28]} 21. h4 {[%clk 0:00:17]}  b4 {[%clk 0:01:15]} 22. a4 {[%clk 0:00:16]}  Qg4 {[%clk 0:01:14]} 23. e5 {[%clk 0:00:14]}  Re8 {[%clk 0:01:05]} 24. Rce1 {[%clk 0:00:11]}  h6 {[%clk 0:01:05]} 25. Bc1 {[%clk 0:00:08]}  Qg3 {[%clk 0:00:47]} 26. e6 {[%clk 0:00:06]}  Bd6 {[%clk 0:00:47]} 27. Bf4 {[%clk 0:00:03]}  Bxf4 {[%clk 0:00:46]} 28. exf7+ {[%clk 0:00:03]}  Kxf7 {[%clk 0:00:45]} 29. d6+ {[%clk 0:00:03]}  Kf8 {[%clk 0:00:35]} 30. Rxe8+ {[%clk 0:00:03]}  Rxe8 {[%clk 0:00:36]} 31. Rxf4 {[%clk 0:00:02]}  Qxf4 {[%clk 0:00:31]} 32. d7 {[%clk 0:00:01]}  Re1# {[%clk 0:00:30]} 0-1

[Event "December 5 Early 2023"]
[Site "https://www.chess.com"]
[Date "2023.12.05"]
[Round "9"]
[White "Zoete, Roelant"]
[Black "Spichkin, Alexander"]
[Result "1-0"]
[Board "137"]
[TimeControl "180+1"]
[WhiteFideId "40103269"]
[BlackFideId "4144074"]
[WhiteElo "2238"]
[BlackElo "2352"]
[WhiteTeam "NED"]
[BlackTeam "RUS"]
[WhiteClock "0:00:40"]
[BlackClock "0:00:36"]

1. e4 {[%clk 0:03:00]}  e5 {[%clk 0:02:57]} 2. Nf3 {[%clk 0:03:00]}  d5 {[%clk 0:02:57]} 3. exd5 {[%clk 0:02:54]}  e4 {[%clk 0:02:55]} 4. Nd4 {[%clk 0:02:48]}  Qxd5 {[%clk 0:02:51]} 5. Nb3 {[%clk 0:02:46]}  Nc6 {[%clk 0:02:50]} 6. Nc3 {[%clk 0:02:46]}  Qe5 {[%clk 0:02:51]} 7. Be2 {[%clk 0:02:39]}  Bf5 {[%clk 0:02:50]} 8. O-O {[%clk 0:02:37]}  O-O-O {[%clk 0:02:50]} 9. Re1 {[%clk 0:02:22]}  Nf6 {[%clk 0:02:41]} 10. d3 {[%clk 0:02:20]}  Bd6 {[%clk 0:02:30]} 11. g3 {[%clk 0:02:14]}  exd3 {[%clk 0:02:25]} 12. Bxd3 {[%clk 0:02:12]}  Bxd3 {[%clk 0:02:03]} 13. Rxe5 {[%clk 0:02:10]}  Nxe5 {[%clk 0:02:00]} 14. cxd3 {[%clk 0:02:09]}  Bb4 {[%clk 0:01:49]} 15. d4 {[%clk 0:01:57]}  c5 {[%clk 0:01:34]} 16. a3 {[%clk 0:01:46]}  cxd4 {[%clk 0:01:17]} 17. axb4 {[%clk 0:01:36]}  dxc3 {[%clk 0:01:16]} 18. Qc2 {[%clk 0:01:37]}  Nf3+ {[%clk 0:01:15]} 19. Kh1 {[%clk 0:01:28]}  Rhe8 {[%clk 0:01:07]} 20. Qxc3+ {[%clk 0:01:26]}  Kb8 {[%clk 0:01:07]} 21. Bf4+ {[%clk 0:01:23]}  Ka8 {[%clk 0:01:06]} 22. Qxf3 {[%clk 0:01:07]}  Ne4 {[%clk 0:01:06]} 23. Qe3 {[%clk 0:00:59]}  a6 {[%clk 0:00:58]} 24. Qb6 {[%clk 0:00:52]}  Rd7 {[%clk 0:00:36]} 25. Rxa6+ {[%clk 0:00:43]}  bxa6 {[%clk 0:00:36]} 26. Qxa6+ {[%clk 0:00:43]}  Ra7 {[%clk 0:00:35]} 27. Qc6+ {[%clk 0:00:44]}  Rb7 {[%clk 0:00:36]} 28. Qxe8+ {[%clk 0:00:45]}  Ka7 {[%clk 0:00:36]} 29. Be3+ {[%clk 0:00:41]}  Ka6 {[%clk 0:00:36]} 30. Qa4# {[%clk 0:00:40]} 1-0

[Event "December 5 Early 2023"]
[Site "https://www.chess.com"]
[Date "2023.12.05"]
[Round "9"]
[White "Petrukhina, Olga"]
[Black "Tarasova, Viktoriya"]
[Result "1-0"]
[Board "138"]
[TimeControl "180+1"]
[WhiteFideId "13703935"]
[BlackFideId "4175840"]
[WhiteElo "2218"]
[BlackElo "2327"]
[WhiteTeam "KAZ"]
[BlackTeam "RUS"]
[WhiteClock "0:00:08"]
[BlackClock "0:00:02"]

1. d4 {[%clk 0:02:18]}  Nf6 {[%clk 0:02:56]} 2. c4 {[%clk 0:02:17]}  e6 {[%clk 0:02:55]} 3. g3 {[%clk 0:02:17]}  d5 {[%clk 0:02:53]} 4. Nf3 {[%clk 0:02:16]}  Bb4+ {[%clk 0:02:53]} 5. Bd2 {[%clk 0:02:16]}  Be7 {[%clk 0:02:53]} 6. Bg2 {[%clk 0:02:16]}  O-O {[%clk 0:02:54]} 7. O-O {[%clk 0:02:17]}  c6 {[%clk 0:02:53]} 8. Na3 {[%clk 0:02:16]}  Nbd7 {[%clk 0:02:53]} 9. Rc1 {[%clk 0:02:15]}  b6 {[%clk 0:02:53]} 10. Nb1 {[%clk 0:01:59]}  Bb7 {[%clk 0:02:49]} 11. Bf4 {[%clk 0:01:54]}  Rc8 {[%clk 0:02:48]} 12. Qa4 {[%clk 0:01:49]}  a5 {[%clk 0:02:47]} 13. cxd5 {[%clk 0:01:42]}  exd5 {[%clk 0:02:46]} 14. Nbd2 {[%clk 0:01:39]}  b5 {[%clk 0:02:39]} 15. Qc2 {[%clk 0:01:32]}  Nb6 {[%clk 0:02:39]} 16. b3 {[%clk 0:01:29]}  c5 {[%clk 0:02:38]} 17. dxc5 {[%clk 0:01:23]}  Bxc5 {[%clk 0:02:38]} 18. Qd3 {[%clk 0:01:22]}  Ne4 {[%clk 0:02:18]} 19. Nd4 {[%clk 0:01:10]}  Nxd2 {[%clk 0:01:56]} 20. Bxd2 {[%clk 0:01:01]}  b4 {[%clk 0:01:55]} 21. Be3 {[%clk 0:00:48]}  Qf6 {[%clk 0:01:39]} 22. Rfd1 {[%clk 0:00:46]}  Rfd8 {[%clk 0:01:35]} 23. Nf5 {[%clk 0:00:19]}  Bxe3 {[%clk 0:01:29]} 24. Nxe3 {[%clk 0:00:18]}  Rxc1 {[%clk 0:01:24]} 25. Rxc1 {[%clk 0:00:19]}  Qd6 {[%clk 0:01:08]} 26. Nf5 {[%clk 0:00:17]}  Qe5 {[%clk 0:01:04]} 27. Nd4 {[%clk 0:00:17]}  h6 {[%clk 0:00:55]} 28. e3 {[%clk 0:00:17]}  Qe8 {[%clk 0:00:37]} 29. h3 {[%clk 0:00:15]}  Rc8 {[%clk 0:00:36]} 30. Rxc8 {[%clk 0:00:13]}  Qxc8 {[%clk 0:00:36]} 31. Qb5 {[%clk 0:00:13]}  Qc1+ {[%clk 0:00:20]} 32. Kh2 {[%clk 0:00:12]}  Qc7 {[%clk 0:00:18]} 33. Qe8+ {[%clk 0:00:11]}  Kh7 {[%clk 0:00:17]} 34. Nf5 {[%clk 0:00:06]}  g6 {[%clk 0:00:11]} 35. Ne7 {[%clk 0:00:04]}  Kg7 {[%clk 0:00:09]} 36. Qg8+ {[%clk 0:00:02]}  Kf6 {[%clk 0:00:09]} 37. Qf8 {[%clk 0:00:02]}  Qxe7 {[%clk 0:00:09]} 38. Qh8+ {[%clk 0:00:02]}  Ke6 {[%clk 0:00:09]} 39. Qd4 {[%clk 0:00:02]}  Nd7 {[%clk 0:00:07]} 40. Qa7 {[%clk 0:00:02]}  Bc6 {[%clk 0:00:06]} 41. Qxa5 {[%clk 0:00:02]}  Qd6 {[%clk 0:00:06]} 42. Qa7 {[%clk 0:00:01]}  Kf6 {[%clk 0:00:06]} 43. Qd4+ {[%clk 0:00:01]}  Ke7 {[%clk 0:00:07]} 44. h4 {[%clk 0:00:02]}  Qc5 {[%clk 0:00:04]} 45. Qh8 {[%clk 0:00:03]}  h5 {[%clk 0:00:03]} 46. Qh7 {[%clk 0:00:03]}  d4 {[%clk 0:00:03]} 47. exd4 {[%clk 0:00:03]}  Qd6 {[%clk 0:00:03]} 48. Bxc6 {[%clk 0:00:03]}  Qxc6 {[%clk 0:00:04]} 49. Qh8 {[%clk 0:00:03]}  Qf3 {[%clk 0:00:04]} 50. Kg1 {[%clk 0:00:03]}  Qd1+ {[%clk 0:00:04]} 51. Kg2 {[%clk 0:00:04]}  Qxd4 {[%clk 0:00:05]} 52. Qxd4 {[%clk 0:00:03]}  Nf6 {[%clk 0:00:04]} 53. Qe3+ {[%clk 0:00:03]}  Kf8 {[%clk 0:00:04]} 54. Qe2 {[%clk 0:00:04]}  Kg7 {[%clk 0:00:05]} 55. Kf1 {[%clk 0:00:05]}  Ng8 {[%clk 0:00:05]} 56. Qf3 {[%clk 0:00:06]}  Nh6 {[%clk 0:00:06]} 57. Qf4 {[%clk 0:00:07]}  Nf5 {[%clk 0:00:02]} 58. Qxb4 {[%clk 0:00:08]} 1-0

[Event "December 5 Early 2023"]
[Site "https://www.chess.com"]
[Date "2023.12.05"]
[Round "9"]
[White "Cagara, Paulina"]
[Black "Korol, Dimitry"]
[Result "1-0"]
[Board "139"]
[TimeControl "180+1"]
[WhiteFideId "1124870"]
[BlackFideId "14108003"]
[WhiteElo "2217"]
[BlackElo "2296"]
[WhiteTeam "POL"]
[BlackTeam "UKR"]
[WhiteClock "0:01:07"]
[BlackClock "0:00:00"]

1. e4 {[%clk 0:03:00]}  c5 {[%clk 0:02:59]} 2. Nc3 {[%clk 0:02:59]}  g6 {[%clk 0:02:59]} 3. f4 {[%clk 0:02:58]}  Bg7 {[%clk 0:02:59]} 4. Nf3 {[%clk 0:02:58]}  Nc6 {[%clk 0:03:00]} 5. d3 {[%clk 0:02:57]}  d6 {[%clk 0:02:55]} 6. g3 {[%clk 0:02:56]}  e5 {[%clk 0:02:54]} 7. Bg2 {[%clk 0:02:56]}  Nge7 {[%clk 0:02:55]} 8. O-O {[%clk 0:02:56]}  Nd4 {[%clk 0:02:55]} 9. Ne2 {[%clk 0:02:49]}  O-O {[%clk 0:02:37]} 10. c3 {[%clk 0:02:47]}  Nxf3+ {[%clk 0:02:37]} 11. Bxf3 {[%clk 0:02:48]}  f5 {[%clk 0:02:31]} 12. exf5 {[%clk 0:02:45]}  Bxf5 {[%clk 0:02:27]} 13. fxe5 {[%clk 0:02:41]}  dxe5 {[%clk 0:02:25]} 14. Bg5 {[%clk 0:02:34]}  Qd7 {[%clk 0:02:21]} 15. Qb3+ {[%clk 0:02:23]}  Be6 {[%clk 0:00:45]} 16. Qxb7 {[%clk 0:02:21]}  Qxb7 {[%clk 0:00:34]} 17. Bxb7 {[%clk 0:02:19]}  Rxf1+ {[%clk 0:00:32]} 18. Rxf1 {[%clk 0:02:18]}  Rb8 {[%clk 0:00:32]} 19. Bxe7 {[%clk 0:02:04]}  Rxb7 {[%clk 0:00:32]} 20. Bxc5 {[%clk 0:02:04]}  Rxb2 {[%clk 0:00:28]} 21. Nc1 {[%clk 0:01:33]}  Bd5 {[%clk 0:00:07]} 22. Rf2 {[%clk 0:01:32]}  Rb1 {[%clk 0:00:06]} 23. Ba3 {[%clk 0:01:23]}  Bh6 {[%clk 0:00:05]} 24. Rf1 {[%clk 0:01:22]}  a5 {[%clk 0:00:00]} 25. Re1 {[%clk 0:01:07]} 1-0

[Event "December 5 Early 2023"]
[Site "https://www.chess.com"]
[Date "2023.12.05"]
[Round "9"]
[White "Vanek, Tomas"]
[Black "Vifleemskaia, Svetlana"]
[Result "1-0"]
[Board "141"]
[TimeControl "180+1"]
[WhiteFideId "313459"]
[BlackFideId "4129490"]
[WhiteElo "2149"]
[BlackElo "2268"]
[WhiteTeam "CZE"]
[BlackTeam "RUS"]
[WhiteClock "0:00:09"]
[BlackClock "0:00:00"]

1. e4 {[%clk 0:02:58]}  e5 {[%clk 0:02:59]} 2. Nf3 {[%clk 0:02:57]}  Nc6 {[%clk 0:02:59]} 3. Bb5 {[%clk 0:02:56]}  a6 {[%clk 0:02:57]} 4. Ba4 {[%clk 0:02:56]}  Bc5 {[%clk 0:02:57]} 5. d3 {[%clk 0:02:47]}  Nge7 {[%clk 0:02:56]} 6. c3 {[%clk 0:02:42]}  O-O {[%clk 0:02:55]} 7. b4 {[%clk 0:02:37]}  Ba7 {[%clk 0:02:51]} 8. Bb3 {[%clk 0:02:36]}  d6 {[%clk 0:02:50]} 9. a4 {[%clk 0:02:33]}  b5 {[%clk 0:02:35]} 10. axb5 {[%clk 0:02:32]}  axb5 {[%clk 0:02:36]} 11. Ra2 {[%clk 0:02:30]}  Be6 {[%clk 0:02:29]} 12. O-O {[%clk 0:02:27]}  Qd7 {[%clk 0:02:28]} 13. Bxe6 {[%clk 0:01:38]}  Qxe6 {[%clk 0:02:25]} 14. Re2 {[%clk 0:01:34]}  h6 {[%clk 0:02:19]} 15. Nbd2 {[%clk 0:01:29]}  f5 {[%clk 0:02:16]} 16. Qb3 {[%clk 0:01:26]}  Qxb3 {[%clk 0:02:02]} 17. Nxb3 {[%clk 0:01:25]}  fxe4 {[%clk 0:02:01]} 18. dxe4 {[%clk 0:01:24]}  Ng6 {[%clk 0:01:57]} 19. Be3 {[%clk 0:01:16]}  Bxe3 {[%clk 0:01:55]} 20. Rxe3 {[%clk 0:01:16]}  Ra3 {[%clk 0:01:53]} 21. Nfd2 {[%clk 0:01:16]}  Rfa8 {[%clk 0:01:49]} 22. g3 {[%clk 0:01:16]}  Ra2 {[%clk 0:01:45]} 23. f4 {[%clk 0:01:14]}  Rb2 {[%clk 0:01:18]} 24. f5 {[%clk 0:01:13]}  Nf8 {[%clk 0:01:11]} 25. h4 {[%clk 0:01:11]}  Nd7 {[%clk 0:01:10]} 26. g4 {[%clk 0:01:12]}  Raa2 {[%clk 0:01:09]} 27. Rf2 {[%clk 0:01:05]}  Nf6 {[%clk 0:01:06]} 28. Rg2 {[%clk 0:00:59]}  h5 {[%clk 0:01:01]} 29. gxh5 {[%clk 0:00:57]}  Nxh5 {[%clk 0:01:01]} 30. Rg5 {[%clk 0:00:54]}  Nf4 {[%clk 0:00:58]} 31. f6 {[%clk 0:00:49]}  Rxd2 {[%clk 0:00:51]} 32. Nxd2 {[%clk 0:00:48]}  Rxd2 {[%clk 0:00:52]} 33. Rxg7+ {[%clk 0:00:48]}  Kf8 {[%clk 0:00:48]} 34. Rxc7 {[%clk 0:00:47]}  Nd8 {[%clk 0:00:34]} 35. Rc8 {[%clk 0:00:37]}  Ne6 {[%clk 0:00:30]} 36. Rb8 {[%clk 0:00:32]}  Kf7 {[%clk 0:00:28]} 37. Rf3 {[%clk 0:00:32]}  Re2 {[%clk 0:00:19]} 38. Rxb5 {[%clk 0:00:26]}  Rxe4 {[%clk 0:00:19]} 39. Rd5 {[%clk 0:00:25]}  Rg4+ {[%clk 0:00:12]} 40. Kf1 {[%clk 0:00:23]}  Rxh4 {[%clk 0:00:12]} 41. Rxd6 {[%clk 0:00:23]}  Rh6 {[%clk 0:00:10]} 42. Rd7+ {[%clk 0:00:23]}  Kf8 {[%clk 0:00:08]} 43. b5 {[%clk 0:00:20]}  Rh1+ {[%clk 0:00:05]} 44. Kg2 {[%clk 0:00:19]}  Rb1 {[%clk 0:00:05]} 45. c4 {[%clk 0:00:19]}  Nf4+ {[%clk 0:00:03]} 46. Kg3 {[%clk 0:00:16]}  Nde6 {[%clk 0:00:04]} 47. Ra7 {[%clk 0:00:13]}  Rc1 {[%clk 0:00:02]} 48. Ra8+ {[%clk 0:00:12]}  Kf7 {[%clk 0:00:02]} 49. b6 {[%clk 0:00:10]}  Kxf6 {[%clk 0:00:00]} 50. b7 {[%clk 0:00:09]} 1-0

[Event "December 5 Early 2023"]
[Site "https://www.chess.com"]
[Date "2023.12.05"]
[Round "9"]
[White "Mirzoev, Azer"]
[Black "Zampronha, Wladimir Camilo"]
[Result "1-0"]
[Board "142"]
[TimeControl "180+1"]
[WhiteFideId "13400304"]
[BlackFideId "2103087"]
[WhiteElo "2599"]
[BlackElo "2358"]
[WhiteTeam "AZE"]
[BlackTeam "BRA"]
[WhiteClock "0:01:07"]
[BlackClock "0:00:11"]

1. c4 {[%clk 0:02:52]}  Nf6 {[%clk 0:02:59]} 2. Nc3 {[%clk 0:02:50]}  e6 {[%clk 0:02:59]} 3. e4 {[%clk 0:02:50]}  c5 {[%clk 0:02:59]} 4. e5 {[%clk 0:02:47]}  Ng8 {[%clk 0:02:59]} 5. d4 {[%clk 0:02:45]}  cxd4 {[%clk 0:02:59]} 6. Qxd4 {[%clk 0:02:45]}  Nc6 {[%clk 0:03:00]} 7. Qe4 {[%clk 0:02:45]}  d6 {[%clk 0:03:00]} 8. exd6 {[%clk 0:02:45]}  Bxd6 {[%clk 0:02:51]} 9. Qg4 {[%clk 0:02:42]}  g6 {[%clk 0:02:47]} 10. Bg5 {[%clk 0:02:39]}  f6 {[%clk 0:02:35]} 11. Bd2 {[%clk 0:02:38]}  e5 {[%clk 0:02:25]} 12. Qh4 {[%clk 0:02:36]}  Be6 {[%clk 0:02:20]} 13. O-O-O {[%clk 0:02:33]}  Qe7 {[%clk 0:02:20]} 14. Be3 {[%clk 0:02:22]}  a6 {[%clk 0:02:18]} 15. f3 {[%clk 0:02:13]}  Rc8 {[%clk 0:02:18]} 16. Kb1 {[%clk 0:02:11]}  Qf7 {[%clk 0:02:09]} 17. Nd5 {[%clk 0:02:07]}  Bxd5 {[%clk 0:01:44]} 18. cxd5 {[%clk 0:02:06]}  Nd8 {[%clk 0:01:37]} 19. Ne2 {[%clk 0:02:03]}  Ne7 {[%clk 0:01:37]} 20. Nc3 {[%clk 0:01:50]}  Nf5 {[%clk 0:01:36]} 21. Qf2 {[%clk 0:01:48]}  Nxe3 {[%clk 0:01:36]} 22. Qxe3 {[%clk 0:01:48]}  O-O {[%clk 0:01:35]} 23. Ne4 {[%clk 0:01:47]}  Qe7 {[%clk 0:01:33]} 24. h4 {[%clk 0:01:46]}  Nf7 {[%clk 0:01:29]} 25. h5 {[%clk 0:01:44]}  g5 {[%clk 0:01:29]} 26. Bd3 {[%clk 0:01:37]}  Kh8 {[%clk 0:01:27]} 27. g4 {[%clk 0:01:36]}  Bc5 {[%clk 0:01:22]} 28. Qe2 {[%clk 0:01:34]}  Nd6 {[%clk 0:01:15]} 29. Rhe1 {[%clk 0:01:33]}  Nxe4 {[%clk 0:01:13]} 30. Qxe4 {[%clk 0:01:32]}  Bd6 {[%clk 0:00:56]} 31. h6 {[%clk 0:01:32]}  Rc5 {[%clk 0:00:52]} 32. a3 {[%clk 0:01:26]}  Rfc8 {[%clk 0:00:51]} 33. Qf5 {[%clk 0:01:22]}  R8c7 {[%clk 0:00:46]} 34. Be4 {[%clk 0:01:18]}  b5 {[%clk 0:00:44]} 35. Qe6 {[%clk 0:01:18]}  Rc8 {[%clk 0:00:21]} 36. Re3 {[%clk 0:01:14]}  R5c7 {[%clk 0:00:20]} 37. Ka2 {[%clk 0:01:12]}  Qxe6 {[%clk 0:00:17]} 38. dxe6 {[%clk 0:01:12]}  Be7 {[%clk 0:00:18]} 39. Rd7 {[%clk 0:01:10]}  Kg8 {[%clk 0:00:17]} 40. Red3 {[%clk 0:01:10]}  Kf8 {[%clk 0:00:17]} 41. Bb7 {[%clk 0:01:08]}  Rxd7 {[%clk 0:00:16]} 42. exd7 {[%clk 0:01:08]}  Rd8 {[%clk 0:00:13]} 43. Bxa6 {[%clk 0:01:08]}  b4 {[%clk 0:00:12]} 44. a4 {[%clk 0:01:08]}  Kf7 {[%clk 0:00:11]} 45. Kb3 {[%clk 0:01:08]}  Ke6 {[%clk 0:00:11]} 46. Bc4# {[%clk 0:01:07]} 1-0

[Event "December 5 Early 2023"]
[Site "https://www.chess.com"]
[Date "2023.12.05"]
[Round "9"]
[White "IranianCheetah"]
[Black "Kononenko, Dmitry"]
[Result "1-0"]
[Board "143"]
[TimeControl "180+1"]
[BlackFideId "14113538"]
[WhiteElo "2308"]
[BlackElo "2570"]
[BlackTeam "UKR"]
[WhiteClock "0:01:02"]
[BlackClock "0:00:06"]

1. e4 {[%clk 0:03:00]}  d5 {[%clk 0:02:56]} 2. exd5 {[%clk 0:03:00]}  Qxd5 {[%clk 0:02:56]} 3. Nc3 {[%clk 0:03:01]}  Qa5 {[%clk 0:02:56]} 4. d4 {[%clk 0:03:01]}  Nf6 {[%clk 0:02:56]} 5. Nf3 {[%clk 0:03:02]}  Bg4 {[%clk 0:02:56]} 6. h3 {[%clk 0:03:02]}  Bh5 {[%clk 0:02:57]} 7. Bc4 {[%clk 0:03:02]}  Nc6 {[%clk 0:02:55]} 8. g4 {[%clk 0:02:59]}  Bg6 {[%clk 0:02:54]} 9. Bb5 {[%clk 0:02:56]}  O-O-O {[%clk 0:02:51]} 10. Bxc6 {[%clk 0:02:55]}  bxc6 {[%clk 0:02:49]} 11. Qe2 {[%clk 0:02:55]}  e5 {[%clk 0:02:29]} 12. Nxe5 {[%clk 0:02:45]}  Kb7 {[%clk 0:02:09]} 13. Qc4 {[%clk 0:02:40]}  Be4 {[%clk 0:01:26]} 14. O-O {[%clk 0:02:39]}  Bd6 {[%clk 0:01:17]} 15. Nxe4 {[%clk 0:02:36]}  Nxe4 {[%clk 0:01:04]} 16. Qxc6+ {[%clk 0:02:35]}  Kb8 {[%clk 0:01:04]} 17. Qxe4 {[%clk 0:02:34]}  Bxe5 {[%clk 0:01:04]} 18. dxe5 {[%clk 0:02:33]}  h5 {[%clk 0:01:04]} 19. g5 {[%clk 0:02:29]}  f5 {[%clk 0:00:55]} 20. Qxf5 {[%clk 0:01:56]}  Rhf8 {[%clk 0:00:53]} 21. Qe4 {[%clk 0:01:54]}  Rd5 {[%clk 0:00:42]} 22. f4 {[%clk 0:01:53]}  Rfd8 {[%clk 0:00:37]} 23. Be3 {[%clk 0:01:52]}  Qb5 {[%clk 0:00:28]} 24. c4 {[%clk 0:01:48]}  Qb4 {[%clk 0:00:20]} 25. Bxa7+ {[%clk 0:01:48]}  Kxa7 {[%clk 0:00:18]} 26. Qxd5 {[%clk 0:01:32]}  Rxd5 {[%clk 0:00:18]} 27. cxd5 {[%clk 0:01:33]}  Qc5+ {[%clk 0:00:18]} 28. Rf2 {[%clk 0:01:31]}  Qxd5 {[%clk 0:00:19]} 29. Re1 {[%clk 0:01:31]}  Qe6 {[%clk 0:00:15]} 30. f5 {[%clk 0:01:31]}  Qe8 {[%clk 0:00:15]} 31. e6 {[%clk 0:01:30]}  Kb7 {[%clk 0:00:13]} 32. e7 {[%clk 0:01:29]}  Kc8 {[%clk 0:00:12]} 33. f6 {[%clk 0:01:30]}  gxf6 {[%clk 0:00:12]} 34. gxf6 {[%clk 0:01:29]}  Qg6+ {[%clk 0:00:13]} 35. Kh2 {[%clk 0:01:28]}  Qd3 {[%clk 0:00:09]} 36. e8=Q+ {[%clk 0:01:28]}  Kb7 {[%clk 0:00:10]} 37. Re3 {[%clk 0:01:18]}  Qd6+ {[%clk 0:00:09]} 38. Kg2 {[%clk 0:01:17]}  Qd5+ {[%clk 0:00:06]} 39. Qe4 {[%clk 0:01:02]}  c6 {[%clk 0:00:05]} 40. Qxd5 {[%clk 0:01:01]}  cxd5 {[%clk 0:00:06]} 41. f7 {[%clk 0:01:02]}  d4 {[%clk 0:00:06]} 42. Re6 {[%clk 0:01:02]}  d3 {[%clk 0:00:05]} 43. f8=Q {[%clk 0:01:02]}  d2 {[%clk 0:00:06]} 44. Rf7# {[%clk 0:01:02]} 1-0